Cogmind - Beta 13 @@@ ROGUE MODE // 2024.03.06 @ 19:44:10 Player: eveschains Result: Destroyed by C-35 Carver with Carbide Saw Performance ------------- Evolutions (5) 2500 Regions Visited (14) 2800 Robots Destroyed (102) 510 Value Destroyed (4352) 4352 Prototype IDs (6) 120 Alien Tech Used (0) 0 Bonus (2310) 2310 TOTAL SCORE: 12592 Bonus ------- Pacifist 200 High Alert Combat Kills 163 Follower Combat Kills 618 Entered Garrisons 400 Used RIF Installer 1000 Friendly Fire -71 Cogmind --------- Core Integrity 0/1000 Matter 290/300 Energy 90/100 System Corruption 45% Temperature Cool (0) Movement Flying (30) Location -5/Factory Parts ------- > --- POWER (2) -------- (None) > --- PROPULSION (5) --- Improved Surge Thruster > --- UTILITY (7) ------ (None) > --- WEAPON (3) ------- (None) > --- INVENTORY (5) ---- Light Angular Momentum Engine Light Treads Gyrokinetic Inverter Improved Datajack Shock Maul Peak State ------------ > --- POWER ------------ Enhanced Fission Core Micro Fission Core > --- PROPULSION ------- Light Treads Armored Huge Wheel Armored Huge Wheel > --- UTILITY ---------- Advanced Cooling System Small Storage Unit Improved Sensor Array Improved Particle Charger Hardened Heavy Armor Plating Improved Shield Generator > --- WEAPON ----------- Variable Charge Gun Long-range Proton Cannon Linear Accelerator > --- INVENTORY -------- Light Angular Momentum Engine Light Treads Gyrokinetic Inverter Improved Sensor Array Hypervelocity Coil Gun Heavy Proton Missile Launcher Improved Datajack Shock Maul [Rating: 80] Favorites ----------- Power Light Nuclear Core Engine Improved Ion Engine Power Core Light Nuclear Core Propulsion Light Treads Treads Light Treads Leg Aluminum Leg Wheel Armored Huge Wheel Hover Unit Gravmag Array Flight Unit Cooled VTOL Module Utility Improved Sensor Array Device Improved Sensor Array Storage Large Storage Unit Processor Advanced Targeting Computer Hackware Relay Coupler [Demolisher] Protection Improved Medium Armor Plating Weapon Great Axe Energy Gun Variable Charge Gun Energy Cannon Long-range Proton Cannon Ballistic Gun Assault Rifle Ballistic Cannon Linear Accelerator Launcher Proton Missile Launcher Impact Weapon Flail Slashing Weapon Great Axe Special Melee Weapon Improved Datajack Build | -11 -10 -9 -9 -8 -8 -8 -7 -7 -7 -6 -6 -5 -5 -5 ------- Run | Yrd Mat Mat Min Mat Gar Mat Fac Gar Fac Fac Ext Fac Was Fac Slots Evolved 10 | . . 2 . 2 . . 2 . . 2 . 2 . . Power 1 | . . . . . . . . . . 1 . . . . Propulsion 3 | . . 1 . 2 . . . . . . . . . . Utility 5 | . . 1 . . . . 2 . . . . 2 . . Weapon 1 | . . . . . . . . . . 1 . . . . Parts Attached 199 | 7 2 14 9 8 12 21 4 25 6 11 41 10 1 28 Power 24 | 2 . 1 . 1 1 . 1 1 1 3 8 . 1 4 Engine 12 | 2 . 1 . 1 . . 1 . . 1 5 . 1 . Core 12 | . . . . . 1 . . 1 1 2 3 . . 4 Reactor . | . . . . . . . . . . . . . . . Propulsion 73 | 2 1 4 5 3 4 13 . 9 1 4 19 2 . 6 Treads 21 | 1 1 2 1 1 2 3 . 2 . . 6 . . 2 Leg 22 | . . . . . 2 3 . 5 . 1 11 . . . Wheel 18 | 1 . 2 4 2 . 3 . 1 1 1 . 2 . 1 Hover 2 | . . . . . . . . . . 2 . . . . Flight 10 | . . . . . . 4 . 1 . . 2 . . 3 Utility 44 | 1 1 3 3 2 2 3 2 4 3 1 6 5 . 8 Device 27 | . 1 2 2 1 . 1 . 2 2 . 5 4 . 7 Storage 5 | 1 . . . 1 . . 1 . . . 1 1 . . Processor 1 | . . . . . . . . . 1 . . . . . Hackware 3 | . . . . . . 1 1 1 . . . . . . Protection 8 | . . 1 1 . 2 1 . 1 . 1 . . . 1 Artifact . | . . . . . . . . . . . . . . . Weapon 58 | 2 . 6 1 2 5 5 1 11 1 3 8 3 . 10 Energy Gun 10 | 1 . 1 . . 1 . 1 . . . 3 1 . 2 Energy Cannon 2 | . . . . . . . . . . . 1 1 . . Ballistic Gun 5 | 1 . 1 . . 1 . . 2 . . . . . . Ballistic Cannon 2 | . . . . . . . . . . . 1 . . 1 Launcher 9 | . . . . 1 . 1 . 2 . 1 1 1 . 2 Special Weapon . | . . . . . . . . . . . . . . . Impact Weapon 14 | . . 4 . 1 . 1 . 2 . 1 1 . . 4 Slashing Weapon 10 | . . . 1 . 3 2 . 2 1 . 1 . . . Piercing Weapon . | . . . . . . . . . . . . . . . Special Melee Weapon 6 | . . . . . . 1 . 3 . 1 . . . 1 Unidentified Prototypes 6 | . . . . . . 1 1 1 . 1 . 1 . 1 Corrupted Parts 4 | . . . . . . . . 1 . . . . . 3 System Corruption 12 | . . . . . . . . 4 . . . . . 8 Parts Lost 71 | . . 4 1 . 2 3 . 13 1 . 28 . 1 18 Power 10 | . . . . . . . . 1 . . 6 . 1 2 Propulsion 35 | . . 1 1 . 2 3 . 6 1 . 13 . . 8 Utility 18 | . . 2 . . . . . 5 . . 5 . . 6 Weapon 8 | . . 1 . . . . . 1 . . 4 . . 2 Highest Loss Streak 15 | . . 2 1 . 1 1 . 5 1 . 14 . 1 15 To Critical Strikes 1 | . . . . . . . . . . . 1 . . . Average Slot Usage (%) 87 | . 99 97 90 85 87 96 94 89 84 86 80 88 84 78 Engine 5 | . 14 11 11 9 1 . 4 5 . 5 7 11 9 1 Core 4 | . . . . . 7 9 2 . 7 6 3 . . 8 Treads 11 | . 14 21 13 13 13 16 7 9 7 6 7 5 5 10 Leg 3 | . . . . . 2 4 15 14 8 1 7 . . . Wheel 9 | . 14 9 11 18 18 16 15 5 5 8 2 10 11 7 Flight 1 | . . . . . . 4 . 4 7 4 1 . . . Device 13 | . 13 17 13 13 10 3 7 9 11 13 12 26 26 20 Storage 8 | . 14 11 11 9 9 9 12 11 7 6 5 11 11 5 Hackware 2 | . . . . . . 5 4 2 7 6 6 2 . . Protection 4 | . . 4 8 5 7 9 7 5 . 2 2 . . 3 Energy Gun 2 | . 14 2 . . 1 . 4 5 . . 3 2 . 2 Launcher 1 | . . . . 2 1 1 . . . 3 1 2 5 . Impact Weapon 7 | . . 15 13 9 6 8 2 1 7 5 4 5 5 7 Slashing Weapon 4 | . . . 8 7 7 6 7 4 7 6 6 4 . . Naked Turns 8 | . . . . . . . . . . . . . . 8 Heaviest Build 80 | 14 15 25 28 41 42 42 47 49 37 64 64 58 58 80 Greatest Support 60 | 16 16 46 28 40 40 40 20 35 35 38 60 56 56 56 Greatest Overweight (x) 6 | 2 . 2 2 1 1 3 2 4 1 6 6 1 1 2 Average Overweight (x) 1 | . . . . . . 1 2 2 . 1 2 . . 1 Largest Inventory Capacity 15 | 8 8 8 8 15 15 15 15 15 15 15 15 8 8 8 Average Capacity 11 | 7 8 8 8 12 15 15 15 15 15 15 11 8 8 7 Most Carried 15 | 7 8 8 8 15 15 15 15 15 15 15 15 8 8 8 Average Carried 10 | 3 7 7 7 11 14 14 13 13 12 14 9 7 7 7 Final Capacity 15 | 8 8 8 8 15 15 15 15 15 15 15 8 8 8 5 Final Carried 15 | 6 8 8 8 15 15 15 15 10 15 15 8 8 7 5 Class Distribution -------------------- 49% | Mutant 45% | Scavenger-Mutant 3% | Tank Dominant Class ---------------- Mutant | -10/Materials Mutant | -9/Materials Mutant | -9/Mines Mutant | -8/Materials Mutant | -8/Garrison Scavenger-Mutant | -8/Materials Scavenger-Mutant | -7/Factory Scavenger-Mutant | -7/Garrison Mutant | -7/Factory Mutant | -6/Factory Scavenger-Mutant | -6/Extension Scavenger-Mutant | -5/Factory Scavenger-Mutant | -5/Waste Scavenger-Mutant | -5/Factory Resources | -11 -10 -9 -9 -8 -8 -8 -7 -7 -7 -6 -6 -5 -5 -5 ----------- Run | Yrd Mat Mat Min Mat Gar Mat Fac Gar Fac Fac Ext Fac Was Fac Matter Collected 2570 | 270 . 235 153 61 187 205 . 268 62 218 440 . . 471 Remotely 292 | . . . 20 . . . . . . . 55 . . 217 Salvage Created 4394 | . . 431 133 186 441 557 . 427 85 286 710 . . 1138 Parts 166 | . . 21 1 14 16 25 . 14 2 13 11 . . 49 Haulers Intercepted . | . . . . . . . . . . . . . . . Recyclers Shooed 4 | . . . . . . . . . . 4 . . . . Parts Field Recycled . | . . . . . . . . . . . . . . . Retrieved Matter . | . . . . . . . . . . . . . . . Parts Self-Destructed . | . . . . . . . . . . . . . . . Prevented . | . . . . . . . . . . . . . . . Kills | -11 -10 -9 -9 -8 -8 -8 -7 -7 -7 -6 -6 -5 -5 -5 ------- Run | Yrd Mat Mat Min Mat Gar Mat Fac Gar Fac Fac Ext Fac Was Fac Combat Hostiles Destroyed 86 | . . 8 3 6 9 12 . 11 3 2 9 . . 23 Melee 41 | . . 4 1 3 4 12 . 3 1 2 1 . . 10 Guns 11 | . . 2 . . 2 . . 3 . . 2 . . 2 Cannons 3 | . . . . . . . . . . . 1 . . 2 AOE 12 | . . . . 3 . . . 4 . . . . . 5 Classes Destroyed 12 | . . 6 1 1 1 . . . . 2 . . . 1 Worker 6 | . . 1 . . . 1 . . . 3 . . . 1 Builder 1 | . . . . . . . . . . . . . . 1 Tunneler 2 | . . 1 . . . . . . . 1 . . . . Recycler 4 | . . . . . . . . . . 1 2 . . 1 Watcher 3 | . . 1 . 1 . . . . . 1 . . . . Swarmer 22 | . . . . 3 . 2 . 6 2 1 . . . 8 Grunt 32 | . . 4 1 1 7 8 . 2 1 . 2 . . 6 Brawler 5 | . . . 1 . 1 . . 1 . . . . . 2 Duelist 2 | . . 1 1 . . . . . . . . . . . Sentry 15 | . . 3 . 2 . 2 . 1 . . 6 . . 1 Hunter 3 | . . . . . 1 . . 1 . . . . . 1 Programmer 6 | . . . . . . . . . . 1 . . . 5 Guerrilla 1 | . . . . . . . . . . . 1 . . . Best Kill Streak 6 | . . 4 1 3 2 4 . 3 3 2 4 . . 6 Combat Bots Only 6 | . . 4 1 3 2 4 . 3 3 1 2 . . 6 Max Kills in Single Turn 5 | . . 1 1 2 1 1 . 1 1 1 1 . . 5 Gunslinging . | . . . . . . . . . . . . . . . Exploded 3 | . . . . 2 . . . 1 . . . . . 3 Melee 1 | . . 1 1 1 1 1 . 1 1 1 1 . . 1 Uniques/NPCs Destroyed . | . . . . . . . . . . . . . . . Combat | -11 -10 -9 -9 -8 -8 -8 -7 -7 -7 -6 -6 -5 -5 -5 -------- Run | Yrd Mat Mat Min Mat Gar Mat Fac Gar Fac Fac Ext Fac Was Fac Hostile Shots Fired 1150 | . . 79 7 31 54 83 . 152 19 4 412 9 1 299 Missed 314 | . . 13 3 5 14 17 . 50 6 2 111 3 . 90 Damage Taken 11513 | . . 901 81 375 607 957 . 1426 141 80 3131 51 38 3725 Core 2274 | . . 181 31 85 43 40 . 245 12 . 623 . . 1014 Absorbed by Shields 845 | . . . . . . . . 81 54 30 196 20 13 451 Regen/Repaired (Parts) 156 | . . 156 . . . . . . . . . . . . Core Remaining (%) 67 | 100 100 . 47 . . 69 . . 63 . 26 . . . Volleys Fired 93 | . . 21 . 2 5 1 . 26 . . 11 2 . 25 Largest 3 | . . 2 . 1 2 1 . 2 . . 2 1 . 3 Hottest 265 | . . 76 . 39 84 36 . 92 . . 150 40 . 265 Shots Fired 160 | . . 28 . 2 10 1 . 43 . . 21 2 . 53 Gun 109 | . . 28 . . 10 . . 34 . . 14 . . 23 Cannon 33 | . . . . . . . . . . . 7 . . 26 Launcher 18 | . . . . 2 . 1 . 9 . . . 2 . 4 Special . | . . . . . . . . . . . . . . . Kinetic 62 | . . 21 . . 5 . . 13 . . 6 . . 17 Thermal 67 | . . 3 . . 5 . . 21 . . 15 . . 23 Explosive 2 | . . . . 2 . . . . . . . . . . Electromagnetic 29 | . . 4 . . . 1 . 9 . . . 2 . 13 Robot Hit Streak 14 | . . 13 . . 13 14 . 12 . . 14 1 . 5 Robot Miss Streak 3 | . . 2 . . . . . 2 . . 2 . . 3 Penetration Max . | . . . . . . . . . . . . . . . Secondary Targets . | . . . . . . . . . . . . . . . Shots Hit Robots 282 | . . 42 6 11 21 38 . 43 5 15 40 1 . 60 Core Hits 101 | . . 9 1 6 8 13 . 16 1 5 11 1 . 30 Critical Kills 1 | . . . . . . . . . . . . . . 1 Critical Parts Destroyed 25 | . . 3 3 . 1 . . 2 2 . 8 . . 6 Critical Strikes 42 | . . 4 3 . 3 5 . 5 2 . 10 . . 10 Burn 4 | . . . . . 1 . . 2 . . 1 . . . Destroy 1 | . . . . . . . . 1 . . . . . . Blast 2 | . . . . . . . . . . . . . . 2 Smash 27 | . . 4 3 . 1 . . 1 2 . 8 . . 8 Sever 8 | . . . . . 1 5 . 1 . . 1 . . . Melee Attacks 260 | . . 35 7 16 21 59 . 17 10 17 35 . . 43 Impact 157 | . . 35 7 6 10 12 . 3 9 3 29 . . 43 Slashing 85 | . . . . 10 11 35 . 8 1 14 6 . . . Piercing . | . . . . . . . . . . . . . . . Sneak Attacks 17 | . . 2 1 1 . 1 . . . 7 4 . . 1 Combat Hostiles 1 | . . . 1 . . . . . . . . . . . Follow-up Attacks 29 | . . 6 . 2 3 3 . . 1 3 4 . . 7 Damage Inflicted 11514 | . . 956 264 891 680 1427 . 989 179 836 1517 136 . 3639 Guns 1405 | . . 295 . . 151 . . 413 . . 215 . . 331 Cannons 820 | . . . . . . . . . . . 158 . . 662 Explosions 1925 | . . . . 369 . 55 . 252 . . . 136 . 1113 Melee 7360 | . . 661 264 522 529 1372 . 324 179 836 1140 . . 1533 Ramming 4 | . . . . . . . . . . . 4 . . . Kinetic 1042 | . . 231 . . 93 . . 191 . . 133 . . 394 Thermal 1406 | . . 30 . . 58 . . 268 . . 240 . . 810 Explosive 527 | . . . . 369 . . . . . . . . . 158 Electromagnetic 1175 | . . 34 . . . 55 . 206 . . . 136 . 744 Impact 4784 | . . 661 264 235 329 372 . 74 132 137 1047 . . 1533 Slashing 2576 | . . . . 287 200 1000 . 250 47 699 93 . . . Piercing . | . . . . . . . . . . . . . . . Highest Corruption 45 | . . . . . . . . 5 5 . . . 15 45 Average Corruption 14 | . . . . . . . . 2 5 . . . 8 20 Corruption Purged . | . . . . . . . . . . . . . . . Corruption Blocked . | . . . . . . . . . . . . . . . Effects 67 | . . . . . . . . 2 7 . . . 6 52 Message Errors 10 | . . . . . . . . . 1 . . . . 9 Matter Fused 13 | . . . . . . . . 1 1 . . . 2 9 Heat Flow Errors 12 | . . . . . . . . . 2 . . . 1 9 Energy Discharges 11 | . . . . . . . . 1 3 . . . . 7 Parts Rejected 2 | . . . . . . . . . . . . . . 2 Data Loss (minor) 3 | . . . . . . . . . . . . . 1 2 Data Loss (major) 4 | . . . . . . . . . . . . . 1 3 Misfires 2 | . . . . . . . . . . . . . . 2 Alerts 2 | . . . . . . . . . . . . . . 2 Misdirections 6 | . . . . . . . . . . . . . 1 5 Weapon Failures 2 | . . . . . . . . . . . . . . 2 Overload Shots 5 | . . . . . . . . . . . . . . 5 Effects 1 | . . . . . . . . . . . . . . 1 Energy Bleed 1 | . . . . . . . . . . . . . . 1 Overflow Damage 1837 | . . 150 124 36 95 53 . 29 76 235 512 . . 527 Projectiles 50 | . . . . . . . . . . . 27 . . 23 Explosions 136 | . . . . 24 . . . 4 . . . . . 108 Melee 1651 | . . 150 124 12 95 53 . 25 76 235 485 . . 396 Knockbacks 23 | . . 2 1 . . 2 . . . 1 5 . . 12 Impact 13 | . . 2 1 . . 2 . . . 1 4 . . 3 Kinetic 7 | . . . . . . . . . . . 1 . . 6 Secondary 3 | . . . . . . . . . . . . . . 3 Self-Inflicted Damage 376 | . . . . 34 . 25 . 167 . . . . . 150 Shots 15 | . . . . 2 . 1 . 8 . . . . . 4 Rammed . | . . . . . . . . . . . . . . . Targets Rammed 1 | . . . . . . . . . . . 1 . . . Kicked 1 | . . . . . . . . . . . 1 . . . Crushed . | . . . . . . . . . . . . . . . Highest Temperature 513 | . . 54 . 7 135 10 . 93 261 . 229 . 234 513 Average Temperature 108 | . . 21 . 6 68 7 . 29 118 . 63 . 201 162 Received Heat Transfer 3202 | . . 330 18 144 279 432 . 375 24 . 1091 . . 509 Effects 3 | . . . . . . . . . . . . . . 3 Energy Bleed 1 | . . . . . . . . . . . . . . 1 Interference 1 | . . . . . . . . . . . . . . 1 Matter Decay 1 | . . . . . . . . . . . . . . 1 Siege Activations . | . . . . . . . . . . . . . . . Robots Corrupted 1 | . . . . . . . . . . . . . . 1 Combat Hostiles 1 | . . . . . . . . . . . . . . 1 Parts Fried 34 | . . 5 1 . 4 2 . . 1 4 9 . . 8 Impact Corruptions 52 | . . 9 5 . 4 2 . 1 3 3 14 . . 11 Robots Melted . | . . . . . . . . . . . . . . . Combat Hostiles . | . . . . . . . . . . . . . . . Parts Melted 2 | . . . . . . 1 . . . . 1 . . . Heat Transferred 2165 | . . 74 . . 222 . . 679 . . 494 . . 696 Parts Sabotaged 1 | . . . . . . . . . . . . . . 1 Parts Stolen . | . . . . . . . . . . . . . . . Parts Stripped . | . . . . . . . . . . . . . . . Power Chain Reactions 3 | . . . . . . . . 2 . . . . . 1 Alert | -11 -10 -9 -9 -8 -8 -8 -7 -7 -7 -6 -6 -5 -5 -5 ------- Run | Yrd Mat Mat Min Mat Gar Mat Fac Gar Fac Fac Ext Fac Was Fac Peak Influence 605 | . 3 207 167 324 605 425 191 466 283 187 216 103 38 357 Initial 294 | . . . 52 11 210 294 191 133 239 138 . 78 36 26 Average 165 | . . 41 82 118 403 344 191 336 256 93 91 84 34 142 Maximum Alert Level 2 | . . 1 . 1 2 2 . 2 1 . 1 . . 1 Low Security (%) 67 | 100 100 99 100 78 . . 100 19 . 100 89 100 100 77 Level 1 24 | . . . . 21 47 89 . 45 100 . 10 . . 22 Level 2 8 | . . . . . 52 10 . 34 . . . . . . Level 3 . | . . . . . . . . . . . . . . . Level 4 . | . . . . . . . . . . . . . . . Level 5 . | . . . . . . . . . . . . . . . High Security . | . . . . . . . . . . . . . . . Max Security . | . . . . . . . . . . . . . . . Squads Dispatched 9 | . . 2 . . . 1 . . . 1 1 1 . 3 Investigation 3 | . . 1 . . . 1 . . . . 1 . . . Extermination 3 | . . . . . . . . . . 1 . 1 . 1 Reinforcement 3 | . . 1 . . . . . . . . . . . 2 Assault . | . . . . . . . . . . . . . . . Garrison . | . . . . . . . . . . . . . . . Intercept . | . . . . . . . . . . . . . . . Searches Triggered . | . . . . . . . . . . . . . . . Construction Impeded 1 | . . . . . . . . . . . . . . 1 Haulers Reinforced . | . . . . . . . . . . . . . . . Active Scanning Responses . | . . . . . . . . . . . . . . . Cargo Convoy Interrupts 1 | . . . . . . . . . . . . . . 1 Stealth | -11 -10 -9 -9 -8 -8 -8 -7 -7 -7 -6 -6 -5 -5 -5 --------- Run | Yrd Mat Mat Min Mat Gar Mat Fac Gar Fac Fac Ext Fac Was Fac Distress Signals 5 | . . 1 . 1 . . . . . . 2 . . 1 Communications Jammed . | . . . . . . . . . . . . . . . Distress Signals . | . . . . . . . . . . . . . . . Times Spotted 187 | . . 27 6 11 18 13 . 17 3 5 28 2 6 51 Peak Tracking Total 16 | . . 8 2 4 3 4 . 4 3 3 7 3 6 16 Tactical Retreats 31 | . . 4 2 2 8 1 . 3 . . 6 2 . 3 Traps | -11 -10 -9 -9 -8 -8 -8 -7 -7 -7 -6 -6 -5 -5 -5 ------- Run | Yrd Mat Mat Min Mat Gar Mat Fac Gar Fac Fac Ext Fac Was Fac Traps Triggered 20 | . . 1 . . 3 2 . 4 1 3 4 1 . 1 Indirectly 2 | . . . . . . . . 2 . . . . . . Trap Hack Attempts . | . . . . . . . . . . . . . . . Triggered . | . . . . . . . . . . . . . . . Disarmed 6 | . . . . . . . . . . . 6 . . . Reprogrammed . | . . . . . . . . . . . . . . . Reused . | . . . . . . . . . . . . . . . Traps Extracted . | . . . . . . . . . . . . . . . Installed . | . . . . . . . . . . . . . . . Triggered 1 | . . . . . . . . . . . . . . 1 Machines | -11 -10 -9 -9 -8 -8 -8 -7 -7 -7 -6 -6 -5 -5 -5 ---------- Run | Yrd Mat Mat Min Mat Gar Mat Fac Gar Fac Fac Ext Fac Was Fac Machines Disabled 11 | . . . . 3 1 1 . 1 . . . . . 5 Max in Single Turn 4 | . . . . 1 1 1 . 1 . . . . . 4 Garrison Relay 2 | . . . . . 1 . . 1 . . . . . . Machines Repaired . | . . . . . . . . . . . . . . . Machines Dismantled . | . . . . . . . . . . . . . . . Machines Sabotaged . | . . . . . . . . . . . . . . . Overloaded Fab Kills . | . . . . . . . . . . . . . . . Hacking | -11 -10 -9 -9 -8 -8 -8 -7 -7 -7 -6 -6 -5 -5 -5 --------- Run | Yrd Mat Mat Min Mat Gar Mat Fac Gar Fac Fac Ext Fac Was Fac Machines Accessed 35 | . 4 3 1 3 1 2 1 1 2 2 9 1 . 5 Terminals 24 | . 3 1 . 2 1 1 . 1 1 2 9 . . 3 Fabricators 1 | . . . . . . . . . . . . . . 1 Repair Stations 3 | . . 1 . . . 1 . . 1 . . . . . Recycling Units 2 | . 1 . . . . . . . . . . . . 1 Scanalyzers 2 | . . 1 . . . . . . . . . 1 . . Garrison Access 2 | . . . . 1 . . 1 . . . . . . . Total Hacks 77 | . 7 18 1 6 1 7 2 4 3 4 14 2 . 8 Successful 46 | . 3 15 1 5 . 3 2 . 1 2 9 1 . 4 Failed 31 | . 4 3 . 1 1 4 . 4 2 2 5 1 . 4 Catastrophic 4 | . . 1 . . . . . 1 . . 1 . . 1 Database Lockouts . | . . . . . . . . . . . . . . . Manual 16 | . 2 5 . 3 . 1 . . 1 3 1 . . . Terminals 48 | . 5 6 . 5 1 3 . 4 1 4 14 . . 5 Fabricators 1 | . . . . . . . . . . . . . . 1 Repair Stations 10 | . . 4 . . . 4 . . 2 . . . . . Recycling Units 4 | . 2 . . . . . . . . . . . . 2 Scanalyzers 10 | . . 8 . . . . . . . . . 2 . . Garrison Access 3 | . . . . 1 . . 2 . . . . . . . Terminal Hacks 18 | . 2 1 1 2 . 1 . . . 1 8 . . 2 Record 2 | . . . . 1 . . . . . . 1 . . . Open Door 7 | . . . 1 . . . . . . . 6 . . . Open DSF 2 | . . . . . . . . . . 1 . . . 1 Alert Level 1 | . . 1 . . . . . . . . . . . . Locate Traps 2 | . 1 . . . . . . . . . . . . 1 Disarm Traps 1 | . . . . . . . . . . . 1 . . . Zone Layout 3 | . 1 . . 1 . 1 . . . . . . . . Fabricator Hacks 1 | . . . . . . . . . . . . . . 1 Build 1 | . . . . . . . . . . . . . . 1 Repair Station Hacks 6 | . . 4 . . . 1 . . 1 . . . . . Scan Component 4 | . . 2 . . . 1 . . 1 . . . . . Repair 2 | . . 2 . . . . . . . . . . . . Recycling Unit Hacks 1 | . . . . . . . . . . . . . . 1 Retrieve Matter 1 | . . . . . . . . . . . . . . 1 Scanalyzer 9 | . . 8 . . . . . . . . . 1 . . Insert Component 5 | . . 4 . . . . . . . . . 1 . . Analyze 4 | . . 4 . . . . . . . . . . . . Garrison Access Hacks 3 | . . . . 1 . . 2 . . . . . . . Unlock Access 2 | . . . . 1 . . 1 . . . . . . . Coupler Status 1 | . . . . . . . 1 . . . . . . . Unauthorized Hacks 8 | . 1 2 . 2 . 1 . . . 1 1 . . . Terminals 8 | . 1 2 . 2 . 1 . . . 1 1 . . . Assimilate 1 | . . 1 . . . . . . . . . . . . Botnet 7 | . 1 1 . 2 . 1 . . . 1 1 . . . Fabricators . | . . . . . . . . . . . . . . . Repair Stations . | . . . . . . . . . . . . . . . Recycling Units . | . . . . . . . . . . . . . . . Scanalyzers . | . . . . . . . . . . . . . . . Garrison Access . | . . . . . . . . . . . . . . . Data Cores Recovered . | . . . . . . . . . . . . . . . Used . | . . . . . . . . . . . . . . . Hacking Detections 21 | . 3 3 . 2 1 2 . 1 2 1 3 . . 3 Full Trace Events 1 | . . . . . . . . . . . 1 . . . Feedback Events . | . . . . . . . . . . . . . . . Feedback Blocked . | . . . . . . . . . . . . . . . Robot Schematics Acquired . | . . . . . . . . . . . . . . . Robots Built . | . . . . . . . . . . . . . . . Authchips . | . . . . . . . . . . . . . . . Time . | . . . . . . . . . . . . . . . Total Robot Build Rating . | . . . . . . . . . . . . . . . Part Schematics Acquired 3 | . . 3 . . . . . . . . . . . . Parts Built 2 | . . . . . . . . . . . . . . 2 Authchips . | . . . . . . . . . . . . . . . Time 117 | . . . . . . . . . . . . . . 117 Total Part Build Rating 14 | . . . . . . . . . . . . . . 14 Parts Repaired 2 | . . 2 . . . . . . . . . . . . Time 58 | . . 58 . . . . . . . . . . . . Parts Recycled . | . . . . . . . . . . . . . . . Recycled Matter . | . . . . . . . . . . . . . . . Retrieved Matter . | . . . . . . . . . . . . . . . Retrieved Components . | . . . . . . . . . . . . . . . Parts Scanalyzed 5 | . . 4 . . . . . . . . . 1 . . Part Schematics Acquired 3 | . . 3 . . . . . . . . . . . . Parts Damaged 1 | . . . . . . . . . . . . 1 . . Bothacking | -11 -10 -9 -9 -8 -8 -8 -7 -7 -7 -6 -6 -5 -5 -5 ------------ Run | Yrd Mat Mat Min Mat Gar Mat Fac Gar Fac Fac Ext Fac Was Fac Used RIF Installer 2 | . . . . . 1 . . 1 . . . . . . Threat Obfuscator 1 | . . . . . . . . 1 . . . . . . Robots Hacked 4 | . . . . . . 2 . 2 . . . . . . Non-combat . | . . . . . . . . . . . . . . . Combat 4 | . . . . . . 2 . 2 . . . . . . Robot Hacks Applied 6 | . . . . . . 3 . 3 . . . . . . find_garrison 1 | . . . . . . 1 . . . . . . . . link_complan 1 | . . . . . . . . 1 . . . . . . spike_heat 1 | . . . . . . 1 . . . . . . . . overload_power 1 | . . . . . . . . 1 . . . . . . formatsys_high 2 | . . . . . . 1 . 1 . . . . . . Relay Couplers Released 8 | . . . . . 5 . . 3 . . . . . . Machine Destruction 8 | . . . . . 5 . . 3 . . . . . . Attached 3 | . . . . . . 1 1 1 . . . . . . Fabnet Peak Effective % . | . . . . . . . . . . . . . . . Robots Rewired . | . . . . . . . . . . . . . . . Allies Hacked . | . . . . . . . . . . . . . . . Hacks Repelled . | . . . . . . . . . . . . . . . Allies | -11 -10 -9 -9 -8 -8 -8 -7 -7 -7 -6 -6 -5 -5 -5 -------- Run | Yrd Mat Mat Min Mat Gar Mat Fac Gar Fac Fac Ext Fac Was Fac Total Allies 17 | . . 1 . . . 1 . 1 . 3 8 . . 3 Largest Group 6 | . . 1 . . . 1 . 1 . 3 6 1 . 3 Highest-Rated Group 193 | . . 10 . . . 5 . 32 . 93 193 28 . 93 Highest-Rated Ally 159 | . . 10 . . . 5 . 32 . 31 159 28 . 31 Total Orders . | . . . . . . . . . . . . . . . Ally Attacks 132 | . . . . . . 1 . 6 . 8 103 1 . 13 Total Damage 2108 | . . . . . . 10 . 215 . 63 1587 . . 233 Kills 24 | . . . . . . . . 2 . 2 18 . . 2 Allies Corrupted . | . . . . . . . . . . . . . . . Allies Melted 1 | . . . . . . . . . . . 1 . . . Intel | -11 -10 -9 -9 -8 -8 -8 -7 -7 -7 -6 -6 -5 -5 -5 ------- Run | Yrd Mat Mat Min Mat Gar Mat Fac Gar Fac Fac Ext Fac Was Fac Robot Analysis Total . | . . . . . . . . . . . . . . . Derelict Logs Recovered 1 | . . . 1 . . . . . . . . . . . Drone Launches . | . . . . . . . . . . . . . . . Drone Recoveries . | . . . . . . . . . . . . . . . Exploration | -11 -10 -9 -9 -8 -8 -8 -7 -7 -7 -6 -6 -5 -5 -5 ------------- Run | Yrd Mat Mat Min Mat Gar Mat Fac Gar Fac Fac Ext Fac Was Fac Turns Passed 8384 | 64 164 959 787 183 713 744 117 748 253 839 1336 340 140 997 Spaces Moved 4687 | 47 149 347 515 123 450 299 90 393 182 532 587 229 126 618 Core 185 | 9 . . . . . . . . . . 97 . . 79 Treads 333 | . . 82 . . . . . . . . 191 60 . . Legs 292 | . . . . . . . . 142 53 . 97 . . . Wheels 3870 | 38 149 265 515 123 450 299 90 251 129 532 202 169 126 532 Hover . | . . . . . . . . . . . . . . . Flight 7 | . . . . . . . . . . . . . . 7 Fastest Speed 30 | 50 100 95 95 95 95 90 110 110 115 105 100 100 100 30 Average Speed 118 | 102 100 116 99 96 102 104 110 136 116 117 161 137 107 110 Slowest Speed 260 | 150 100 160 120 110 110 125 110 190 120 170 260 240 115 150 Overloaded Moves . | . . . . . . . . . . . . . . . Propulsion Burnouts . | . . . . . . . . . . . . . . . Robots Hopped 4 | . . . . . . . . . . . . . . 4 Cave-ins Triggered . | . . . . . . . . . . . . . . . Exploration Rate (%) 31 | 3 28 30 89 11 45 22 2 41 7 10 65 7 88 21 Regions Visited 14 Branch Regions 2 Pre-discovered Areas . | . . . . . . . . . . . . . . . Known Exits Taken 2 | . . . . 1 . . 1 . . . . . . . Unknown Exits Taken 8 | 1 1 1 1 . . 1 . . 1 1 1 . . . Scrap Searched 3 | . . . 3 . . . . . . . . . . . Spaces Dug 5 | . . 3 . . . . . . . 1 . . . 1 Terrain Destroyed 120 | . . 3 . 53 . . . 7 . 1 1 . . 55 Melee 4 | . . 3 . . . . . . . 1 . . . . Projectile 15 | . . . . . . . . . . . 1 . . 14 AOE 101 | . . . . 53 . . . 7 . . . . . 41 Terrain Rammed . | . . . . . . . . . . . . . . . Walls Destroyed . | . . . . . . . . . . . . . . . Machines Disabled . | . . . . . . . . . . . . . . . Actions | -11 -10 -9 -9 -8 -8 -8 -7 -7 -7 -6 -6 -5 -5 -5 --------- Run | Yrd Mat Mat Min Mat Gar Mat Fac Gar Fac Fac Ext Fac Was Fac Total 6968 | 59 167 827 781 161 660 656 108 536 209 719 887 257 130 811 Wait 1490 | . . 410 236 . 143 258 10 60 . 149 141 . 2 81 Move 4666 | 46 148 346 514 123 446 298 89 392 181 531 586 229 125 612 Hop 2 | . . . . . . . . . . . . . . 2 Pick Up 84 | 6 9 5 4 8 4 7 3 3 6 5 16 3 1 4 Fast Attach 83 | 5 1 4 5 2 3 7 . 4 5 7 20 6 . 14 Attach 49 | 1 . 5 1 2 . 3 2 10 . 2 16 2 1 4 Detach 12 | . . 1 1 2 . . . 2 1 . 2 2 . 1 Swap 67 | 1 1 5 3 4 9 11 2 11 1 2 5 2 . 10 Drop 104 | . 8 2 10 4 8 16 2 1 6 9 12 11 1 14 Fire 93 | . . 21 . 2 5 1 . 26 . . 11 2 . 25 Melee 228 | . . 28 7 14 18 54 . 17 9 14 31 . . 36 Ram . | . . . . . . . . . . . . . . . Kick 1 | . . . . . . . . . . . 1 . . . Crush . | . . . . . . . . . . . . . . . Escape Stasis 87 | . . . . . 24 . . 9 . . 46 . . 8 Rewire 2 | . . . . . . 1 . 1 . . . . . . Trap . | . . . . . . . . . . . . . . . Miscellaneous . | . . . . . . . . . . . . . . . Route ------- -11/Scrapyard -10/Materials -9/Materials -9/Mines -8/Materials -8/Garrison (discovered 2 exits: *Mat x2) -8/Materials -7/Factory -7/Garrison -7/Factory -6/Factory -6/Extension (discovered 2 exits: *Fac / [*Cet]) -5/Factory -5/Waste -5/Factory History --------- Turn | Location | Event 12 | -11/Scrapyard | Discovered new exit (range 15) 65 | -11/Scrapyard | Entered Materials 207 | -10/Materials | Discovered new exit (range 16) 229 | -10/Materials | Entered another Materials area 229 | -9/Materials | Evolved 2 slots: Propulsion x1, Utility x1 322 | -9/Materials | Build established: Mutant 1050 | -9/Materials | Repaired Wheel 1083 | -9/Materials | Repaired Imp. Treads 1180 | -9/Materials | Discovered new exit (range 9) 1188 | -9/Materials | Entered Mines 1272 | -9/Mines | Received a Rocket Launcher from a helpful Derelict 1307 | -9/Mines | Learned Materials terminal intel 1327 | -9/Mines | Met a Derelict who couldn't figure out how to use a Trap Extractor 1328 | -9/Mines | Core integrity fell below 50% 1843 | -9/Mines | Discovered new exit (range 9) 1975 | -9/Mines | Entered Materials 1975 | -8/Materials | Evolved 2 slots: Propulsion x2 1976 | -8/Materials | Loaded intel: 12 terminal locations 2158 | -8/Materials | Identified exit to Garrison 2158 | -8/Materials | Entered Garrison 2214 | -8/Garrison | Triggered checkpoint 2252 | -8/Garrison | Discovered new exit (range 8) 2259 | -8/Garrison | Attempted to access garrison exit controls, blocked by remote lockdown 2354 | -8/Garrison | Triggered checkpoint 2372 | -8/Garrison | Garrison Relay disabled 2844 | -8/Garrison | Discovered new exit (range 13) 2856 | -8/Garrison | Installed Relay Interface Framework 2871 | -8/Garrison | Entered Materials 3531 | -8/Materials | Discovered new exit (range 5) 3590 | -8/Materials | Build established: Scavenger-Mutant 3615 | -8/Materials | Entered Factory 3615 | -7/Factory | Evolved 2 slots: Utility x2 3731 | -7/Factory | Identified exit to Garrison 3732 | -7/Factory | Entered Garrison 4002 | -7/Garrison | Garrison Relay disabled 4090 | -7/Garrison | Triggered checkpoint 4216 | -7/Garrison | Lost 5 parts (2n2u1w) 4410 | -7/Garrison | Lost 3 parts (1p1n1u) 4447 | -7/Garrison | Discovered new exit (range 15) 4459 | -7/Garrison | Expanded RIF knowledge: Threat Obfuscation 4480 | -7/Garrison | Entered Factory 4729 | -7/Factory | Discovered new exit (range 4) 4733 | -7/Factory | Entered another Factory area 4733 | -6/Factory | Evolved 2 slots: Power x1, Weapon x1 4867 | -6/Factory | Discovered new exit (range 13) 4901 | -6/Factory | Build established: Mutant 5286 | -6/Factory | Allied Derelicts emerged from ambush trap array 5572 | -6/Factory | Entered Extension 5572 | -6/Extension | Accompanied by 3 allies 5741 | -6/Extension | Build established: Scavenger-Mutant 5939 | -6/Extension | Lost 3 allies 5993 | -6/Extension | Spotted B-75 Beast 6095 | -6/Extension | Lost 12 parts (3p5n3u1w) 6207 | -6/Extension | Rescued A7 6261 | -6/Extension | Spotted B-75 Beast 6263 | -6/Extension | Extracted ID and sensor layout for unrecognized location from A7's data core 6286 | -6/Extension | Core integrity fell below 50% 6313 | -6/Extension | Lost 14 parts (2p7n2u3w) 6371 | -6/Extension | Rescued a captive Derelict 6371 | -6/Extension | Rescued a captive Derelict 6393 | -6/Extension | Rescued a captive Derelict 6567 | -6/Extension | Rescued a captive Derelict 6569 | -6/Extension | Rescued a captive Derelict 6693 | -6/Extension | Rescued a captive Derelict 6711 | -6/Extension | Rescued a captive Derelict 6885 | -6/Extension | Discovered new exit (range 10) 6886 | -6/Extension | Discovered new exit (range 6) 6908 | -6/Extension | Entered Factory 6908 | -5/Factory | Accompanied by 1 ally 6908 | -5/Factory | Evolved 2 slots: Utility x2 7248 | -5/Factory | Sucked down chute 7248 | -5/Factory | Entered Waste 7257 | -5/Waste | Spotted C-40 Crusher 7263 | -5/Waste | EMP discharged 7278 | -5/Waste | Spotted C-40 Crusher 7278 | -5/Waste | Spotted C-40 Crusher 7279 | -5/Waste | Spotted C-40 Crusher 7327 | -5/Waste | Crushed by Compactor (1 part destroyed, 1 dropped) 7331 | -5/Waste | Spotted C-40 Crusher 7352 | -5/Waste | Spotted C-40 Crusher 7363 | -5/Waste | EMP discharged 7363 | -5/Waste | System corruption reached 10% 7373 | -5/Waste | Discovered new exit (range 16) 7388 | -5/Waste | Entered Factory 7570 | -5/Factory | Spotted B-75 Beast 8106 | -5/Factory | Fabricated Dispersion Rifle? 8298 | -5/Factory | System corruption reached 30% 8308 | -5/Factory | Cargo convoy interrupted 8365 | -5/Factory | Lost 15 parts (2p7n5u1w) 8371 | -5/Factory | Core integrity fell below 50% 8380 | -5/Factory | Core integrity fell below 20% 8385 | -5/Factory | Destroyed by C-35 Carver with Carbide Saw Last Messages --------------- 08369_ P-70 Sage destroyed. 08372_ Acquired 8 matter. 08374_ Powered Hammer destroyed. 08376_ C-35 Carver destroyed. 08376_ Knocked back. 08376_ P-70 Sage knocked back. 08376_ X-72 Disruptor knocked back. 08376_ K-01 Serf knocked back. 08376_ Knocked back. 08376_ Slug penetrates Wall. 08378_ K-01 Serf collects debris. 08378_ Slug penetrates Pressure Siphon. 08379_ Penetrated by Slug. 08381_ K-01 Serf cleans the Pressure Siphon. 08382_ Acquired Unknown Flight Unit. 08382_ Identified Imp. Surge Thruster. 08383_ Slug penetrates C-35 Carver. 08384_ K-01 Serf destroyed. 08385_ 4K2FBOAN3>9RTDEIUCAVE6WQGP5YIHNUYIR 08385_ K-01 Serf collects debris. Map ----- +----------------------------------------------------+ | ?????????????????????????????????????????????????? | | ?????????????????????????????????????????????????? | | ?????????????????????????????????????????????????? | | ?????????????????????????????????????????????????? | | ?????????????????????????????????????????????????? | | ?????????????????????????????????????????????????? | | ?????????????????????????????????????????????????? | | ?????????????????????????????????????????????????? | | ?????????????????????????????????????????????????? | | ?????????????????????????????????????????????????? | | ?????????????????????????????????????????????????? | | ?????????????????????????????????????????????????? | | ?????????????????????????????????????????????????? | | ????????????########?????????????????????????????? | | ????????????# #?????????????????????????????? | | ????????????#""" ##########????????????????????? | | ????????????#"R # #????????????????????? | | ????????????#""" # #????????????????????? | | ###+###?????# "" # #????????????????????? | | #?????# # #????????????????????? | | #######|""" # #????????????????????? | | +*""" # #????????????????????? | | #%""" # #????????????????????? | | #![ # #????????????????????? | | ##### # # #????????????????????? | | # # ### c@##### #????????????? | | # pp !/c% +????????????? | | + p = ]%=k #????????????? | | ##### # *%%" /""" """ #????????????? | | ????# # =""" """ """ #????????????? | | ######### """ """ """ ??????????????? | | """ """ """ ????????????????? | | ?????????????????? | | ########## ?????????????????? | | ########## ? ??????????????????? | | ## #########????????????????????? | | ## #????????????????????????????? | | ## #????????????????????????????? | | ## #????????????????????????????? | | + #????????????????????????????? | | "" """" ### ### +????????????????????????????? | | "" """" #? ??# #????????????????????????????? | | "" """" #? ???# #????????????????????????????? | | "" """" #?????### ###????????????????????????????? | | "" """" #???????? ???????????????????????????????? | | "" """" #????????????????????????????????????????? | | #????????????????????????????????????????? | | +#+######????????????????????????????????????????? | | #???????????????????????????????????????????? | | #???????????????????????????????????????????? | +----------------------------------------------------+ Best States ------------- Heat Dissipation 71 Coolant Potential 65 Energy Generation 31 Energy Capacity 500 Matter Stores 430 Matter Capacity 450 Sight Range 16 Robot Scan Range 15 Terrain Scan Density 10 Armor Coverage 600 Evasion (%) 55 Targeting Accuracy 8 Recoil Reduction 3 Particle Charging 20 Relay Coupler Types 1 Relay Coupler Value 29 Trap Extractor Capacity 6 Item Schematics ----------------- ECM Suite | -9/Materials | Scanalyzed Wheel | -9/Materials | Scanalyzed Flail | -9/Materials | Scanalyzed Robot Schematics ------------------ None Fabricated ------------ Dispersion Rifle | x2 | -5/Factory | Preloaded Alien Tech Used ----------------- None Achievements -------------- Assimilation Complete Prison Break Challenges ------------ None Game ------ Seed PlasmaDeuteriumSink Manual? 0 Play Time 01:44:55 Cumulative 89.1 hours Start 2024.03.06 @ 12:23:04 End 2024.03.06 @ 19:44:10 Sessions 1 Manual Loads 0 Difficulty Rogue Special Mode None Game No. 96 Rogue 96 Adventurer 0 Explorer 0 Win Type - Total 0 Types 0/0/0/0/0/0/0/0/0 Lore% 47 Gallery% 52 Achievement% 37 Wizard Run 0 Options --------- Layout 1 ASCII 0 Keyboard 0 Movement Mouse Keybinds 0 Fullscreen 2 Font 32/Tamsyn Map View 77x35 Zoom Use 0% Tactical HUD 1 Map Filters NONE Filters NONE Steam 1 RUN: 421d58ae-f4ed-4bd5-a0f6-7d9f0fcc40c4